fUSD/lending_fUSD_20250301
["ID","MTS","AMOUNT","RATE_DAILY","PERIOD"]
[354995844,1740858681088,-553.15,0.00027671,2]
[354995845,1740858681097,-500.0,0.00027671,2]
[354995846,1740858681106,-547.04,0.00027671,2]
[354995847,1740858681116,-546.6,0.00027671,2]
[354995848,1740858681126,-938.89,0.00027671,2]
[354995849,1740858681135,-500.0,0.00027671,2]
[354995850,1740858681144,-198.20762294,0.00027671,2]
[354995851,1740858681153,-500.0,0.00027671,2]
[354995852,1740858681162,-500.0,0.00027671,2]
[354995853,1740858681172,-500.0,0.00027671,2]
[354995854,1740858681181,-500.0,0.00027671,2]
[354995855,1740858681191,-500.0,0.00027671,2]
[354995856,1740858681200,-500.0,0.00027671,2]
[354995857,1740858681210,-500.0,0.00027671,2]
[354995858,1740858681219,-702.7,0.00027671,2]
[354995859,1740858681229,-500.0,0.00027671,2]
[354995860,1740858681239,-500.0,0.00027671,2]
[354995861,1740858681249,-500.0,0.00027671,2]
[354995862,1740858681259,-962.96,0.00027671,2]
[354995863,1740858681268,-871.98,0.00027671,2]
[354995864,1740858681281,-690.67,0.00027671,2]
[354995865,1740858681291,-4231.37,0.00027671,2]
[354995866,1740858681302,-500.0,0.00027671,2]
[354995867,1740858681311,-500.0,0.00027671,2]
[354995868,1740858681321,-539.33,0.00027671,2]
[354995869,1740858681330,-500.0,0.00027671,2]
[354995870,1740858681339,-741.36,0.00027671,2]
[354995871,1740858681348,-601.03,0.00027671,2]
[354995872,1740858681357,-6071.89,0.00027671,2]
[354995873,1740858681367,-845.71,0.00027671,2]
[354995874,1740858681377,-720.23,0.00027671,2]
[354995875,1740858681387,-569.42,0.00027671,2]
[354995876,1740858681396,-500.0,0.00027671,2]
[354995877,1740858681405,-500.0,0.00027671,2]
[354995878,1740858681415,-569.65,0.00027671,2]
[354995879,1740858681424,-683.45,0.00027671,2]
[354995880,1740858681433,-838.27,0.00027671,2]
[354995881,1740858681443,-500.0,0.00027671,2]
[354995882,1740858681452,-837.72,0.00027671,2]
[354995883,1740858681462,-825.34,0.00027671,2]
[354995884,1740858681471,-500.0,0.00027671,2]
[354995885,1740858681480,-500.0,0.00027671,2]
[354995886,1740858681489,-500.0,0.00027671,2]
[354995887,1740858681499,-500.0,0.00027671,2]
[354995888,1740858681508,-500.0,0.00027671,2]
[354995889,1740858681517,-500.0,0.00027671,2]
[354995890,1740858681527,-500.0,0.00027671,2]
[354995891,1740858681536,-9196.21,0.00027671,2]
[354995892,1740858681546,-500.0,0.00027671,2]
[354995893,1740858681556,-540.61,0.00027671,2]
[354995894,1740858681565,-500.0,0.00027671,2]
[354995895,1740858681574,-418.70682126,0.00027671,2]
[354995896,1740858681583,-1573.23,0.00027671,2]
[354995897,1740858681592,-747.87,0.00027671,2]
[354995898,1740858681601,-500.0,0.00027671,2]
[354995899,1740858681611,-970.75,0.00027671,2]
[354995900,1740858681620,-500.0,0.00027671,2]
[354995901,1740858681630,-500.0,0.00027671,2]
[354995902,1740858681640,-1337.47,0.00027671,2]
[354995903,1740858681650,-556.96,0.00027671,2]
[354995904,1740858681659,-500.0,0.00027671,2]
[354995905,1740858681668,-500.0,0.00027671,2]
[354995906,1740858681678,-519.03,0.00027671,2]
[354995907,1740858681687,-500.0,0.00027671,2]
[354995908,1740858681697,-526.62,0.00027671,2]
[354995909,1740858681707,-500.0,0.00027671,2]
[354995910,1740858681716,-1519.99,0.00027671,2]
[354995911,1740858681726,-500.0,0.00027671,2]
[354995912,1740858681736,-3027.82,0.00027671,2]
[354995913,1740858681745,-500.0,0.00027671,2]
[354995914,1740858681754,-7102.79,0.00027671,2]
[354995915,1740858681762,-500.0,0.00027671,2]
[354995916,1740858681772,-1042.84,0.00027671,2]
[354995917,1740858681782,-500.0,0.00027671,2]
[354995918,1740858681791,-500.0,0.00027671,2]
[354995919,1740858681801,-855.2,0.00027671,2]
[354995920,1740858681811,-500.0,0.00027671,2]
[354995921,1740858681820,-500.0,0.00027671,2]
[354995922,1740858681830,-653.93,0.00027671,2]
[354995923,1740858681839,-291.74533604,0.00027671,2]
[354995924,1740858681848,-1305.14,0.00027671,2]
[354995925,1740858681857,-159.894748,0.0002778,2]
[354995926,1740858681867,-156.24,0.00027824,2]
[354995927,1740858681876,-154.102602,0.00027944,7]
[354995928,1740858681885,-569.78,0.00027944,2]
[354995929,1740858681894,-877.07,0.00027944,2]
[354995930,1740858681905,-500.0,0.00027944,2]
[354995931,1740858681914,-504.7,0.00027944,2]
[354995932,1740858681924,-612.55,0.00027944,2]
[354995933,1740858681934,-500.0,0.00027944,2]
[354995934,1740858681944,-1898.33,0.00027944,2]
[354995935,1740858681954,-500.0,0.00027944,2]
[354995936,1740858681964,-783.37,0.00027944,2]
[354995937,1740858681973,-566.09,0.00027944,2]
[354995938,1740858681983,-507.39,0.00027944,2]
[354995939,1740858681993,-1579.83,0.00027945,60]
[354995940,1740858682002,-667.189794,0.00027945,2]
[354995941,1740858682011,-865.056936,0.00027945,2]
[354995942,1740858682020,-150.369306,0.00027945,2]
[354995943,1740858682197,-426.35418794,0.00027945,2]
[354995944,1740858682208,-500.0,0.00027945,2]
[354995945,1740858682218,-500.0,0.00027945,2]
[354995946,1740858682227,-231.24032378,0.00027945,2]
[354995947,1740858682237,-642.452685,0.00027945,2]
[354995948,1740858682250,-500.0,0.00027945,2]
[354995949,1740858682260,-500.0,0.00027945,2]
[354995950,1740858682269,-500.0,0.00027945,2]
[354995951,1740858682278,-500.0,0.00027945,2]
[354995952,1740858682288,-500.0,0.00027945,2]
[354995953,1740858682298,-500.0,0.00027945,2]
[354995954,1740858682307,-500.0,0.00027945,2]
[354995955,1740858682318,-500.0,0.00027945,2]
[354995956,1740858682329,-500.0,0.00027945,2]
[354995957,1740858682338,-195.15163738,0.00027945,2]
[354995958,1740858682352,-500.0,0.00027945,2]
[354995959,1740858682364,-157.4683,0.00027945,7]
[354995960,1740858682373,-157.4683,0.00027945,7]
[354995961,1740858682382,-500.0,0.00027945,2]
[354995962,1740858682391,-500.0,0.00027945,2]
[354995963,1740858682401,-500.0,0.00027945,2]
[354995964,1740858682410,-500.0,0.00027945,2]
[354995965,1740858682419,-500.0,0.00027945,2]
[354995966,1740858682428,-500.0,0.00027945,2]
[354995967,1740858682438,-500.0,0.00027945,2]
[354995968,1740858682447,-500.0,0.00027945,2]
[354995969,1740858682457,-500.0,0.00027945,2]
[354995970,1740858682467,-225.40649695,0.00027945,2]
[354995971,1740858682477,-500.0,0.00027945,2]
[354995972,1740858682486,-500.0,0.00027945,2]
[354995973,1740858682496,-500.0,0.00027945,2]
[354995974,1740858682511,-500.0,0.00027945,2]
[354995975,1740858682521,-500.0,0.00027945,2]
[354995976,1740858682532,-633.09612011,0.00027945,2]
[354995977,1740858682542,-500.0,0.00027945,2]
[354995978,1740858682552,-238.83927962,0.00027945,2]
[354995979,1740858682562,-500.0,0.00027945,2]
[354995980,1740858682572,-500.0,0.00027945,2]
[354995981,1740858682582,-524.67,0.00027945,2]
[354995982,1740858682592,-500.0,0.00027945,2]
[354995983,1740858682602,-500.0,0.00027945,2]
[354995984,1740858682611,-500.0,0.00027945,2]
[354995985,1740858682621,-821.57,0.00027945,2]
[354995986,1740858682631,-1102.93,0.00027945,2]
[354995987,1740858682641,-507.92,0.00027945,2]
[354995988,1740858682651,-554.05,0.00027945,2]
[354995989,1740858682661,-500.0,0.00027945,2]
[354995990,1740858682671,-500.0,0.00027945,2]
[354995991,1740858682681,-500.0,0.00027945,2]
[354995992,1740858682691,-500.0,0.00027945,2]
[354995993,1740858682701,-500.0,0.00027945,2]
[354995994,1740858682711,-500.0,0.00027945,2]
[354995995,1740858682721,-500.0,0.00027945,2]
[354995996,1740858682731,-500.0,0.00027945,2]
[354995997,1740858682741,-500.0,0.00027945,2]
[354995998,1740858682751,-500.0,0.00027945,2]
[354995999,1740858682760,-500.0,0.00027945,2]
[354996000,1740858682770,-500.0,0.00027945,2]
[354996001,1740858682780,-500.0,0.00027945,2]
[354996002,1740858682790,-500.0,0.00027945,2]
[354996003,1740858682799,-500.0,0.00027945,2]
[354996004,1740858682809,-528.74,0.00027945,2]
[354996005,1740858682819,-500.0,0.00027945,2]
[354996006,1740858682829,-464.53580112,0.00027945,2]
[354996007,1740858682839,-500.0,0.00027945,2]
[354996008,1740858682848,-887.94,0.00027945,2]
[354996009,1740858682857,-500.0,0.00027945,2]
[354996010,1740858682867,-504.34,0.00027945,2]
[354996011,1740858682877,-500.0,0.00027945,2]
[354996012,1740858682887,-626.91,0.00027945,2]
[354996013,1740858682897,-151.0,0.00027945,7]
[354996014,1740858682907,-724.79,0.00027945,2]
[354996015,1740858682916,-572.85,0.00027945,2]
[354996016,1740858682927,-634.03,0.00027945,2]
[354996017,1740858682937,-544.81,0.00027945,2]
[354996018,1740858682947,-1225.41,0.00027945,2]
[354996019,1740858682957,-500.0,0.00027945,2]
[354996020,1740858682967,-650.4,0.00027945,2]
[354996021,1740858682978,-1646.57,0.00027945,2]
[354996022,1740858682988,-500.0,0.00027945,2]
[354996023,1740858682998,-500.0,0.00027945,2]
[354996024,1740858683009,-500.0,0.00027945,2]
[354996025,1740858683019,-574.95,0.00027945,2]
[354996026,1740858683036,-1000.0,0.00027945,2]
[354996027,1740858683046,-548.18,0.00027945,2]
[354996028,1740858683056,-1162.75,0.00027945,2]
[354996029,1740858683066,-500.0,0.00027945,2]
[354996030,1740858683076,-550.88,0.00027945,2]
[354996031,1740858683087,-500.0,0.00027945,2]
[354996032,1740858683097,-574.67,0.00027945,2]
[354996033,1740858683107,-530.38,0.00027945,2]
[354996034,1740858683116,-606.9,0.00027945,2]
[354996035,1740858683127,-731.69,0.00027945,2]
[354996036,1740858683137,-500.0,0.00027945,2]
[354996037,1740858683147,-742.69,0.00027945,2]
[354996038,1740858683157,-500.0,0.00027945,2]
[354996039,1740858683168,-553.15,0.00027945,2]
[354996040,1740858683178,-500.0,0.00027945,2]
[354996041,1740858683188,-546.6,0.00027945,2]
[354996042,1740858683199,-938.89,0.00027945,2]
[354996043,1740858683208,-500.0,0.00027945,2]
[354996044,1740858683218,-500.0,0.00027945,2]
[354996045,1740858683229,-500.0,0.00027945,2]
[354996046,1740858683239,-500.0,0.00027945,2]
[354996047,1740858683253,-500.0,0.00027945,2]
[354996048,1740858683263,-500.0,0.00027945,2]
[354996049,1740858683273,-500.0,0.00027945,2]
[354996050,1740858683284,-500.0,0.00027945,2]
[354996051,1740858683295,-702.7,0.00027945,2]
[354996052,1740858683305,-500.0,0.00027945,2]
[354996053,1740858683315,-500.0,0.00027945,2]
[354996054,1740858683326,-559.16969805,0.00027945,2]
[354996055,1740858683335,-871.98,0.00027945,2]
[354996056,1740858683346,-962.96,0.00027945,2]
[354996057,1740858683356,-690.67,0.00027945,2]
[354996058,1740858683365,-4231.37,0.00027945,2]
[354996059,1740858683375,-500.0,0.00027945,2]
[354996060,1740858683385,-425.45547392,0.00027945,2]
[354996061,1740858683395,-539.33,0.00027945,2]
[354996062,1740858683404,-500.0,0.00027945,2]
[354996063,1740858683414,-741.36,0.00027945,2]
[354996064,1740858683423,-601.03,0.00027945,2]
[354996065,1740858683433,-6071.89,0.00027945,2]
[354996066,1740858683444,-845.71,0.00027945,2]
[354996067,1740858683454,-720.23,0.00027945,2]
[354996068,1740858683464,-569.42,0.00027945,2]
[354996069,1740858683474,-500.0,0.00027945,2]
[354996070,1740858683484,-500.0,0.00027945,2]
[354996071,1740858683494,-569.65,0.00027945,2]
[354996072,1740858683504,-683.45,0.00027945,2]
[354996073,1740858683514,-838.27,0.00027945,2]
[354996074,1740858683524,-500.0,0.00027945,2]
[354996075,1740858683535,-837.72,0.00027945,2]
[354996076,1740858683550,-825.34,0.00027945,2]
[354996077,1740858683560,-500.0,0.00027945,2]
[354996078,1740858683571,-500.0,0.00027945,2]
[354996079,1740858683581,-500.0,0.00027945,2]
[354996080,1740858683592,-500.0,0.00027945,2]
[354996081,1740858683602,-500.0,0.00027945,2]
[354996082,1740858683612,-500.0,0.00027945,2]
[354996083,1740858683623,-500.0,0.00027945,2]
[354996084,1740858683634,-9196.21,0.00027945,2]
[354996085,1740858683644,-500.0,0.00027945,2]
[354996086,1740858683655,-540.61,0.00027945,2]
[354996087,1740858683666,-500.0,0.00027945,2]
[354996088,1740858683676,-1573.23,0.00027945,2]
[354996089,1740858683687,-747.87,0.00027945,2]
[354996090,1740858683697,-500.0,0.00027945,2]
[354996091,1740858683708,-970.75,0.00027945,2]
[354996092,1740858683719,-500.0,0.00027945,2]
[354996093,1740858683730,-500.0,0.00027945,2]
[354996094,1740858683740,-1337.47,0.00027945,2]
[354996095,1740858683751,-556.96,0.00027945,2]
[354996096,1740858683761,-500.0,0.00027945,2]
[354996097,1740858683771,-500.0,0.00027945,2]
[354996098,1740858683783,-519.03,0.00027945,2]
[354996099,1740858683793,-500.0,0.00027945,2]
[354996100,1740858683804,-526.62,0.00027945,2]
[354996101,1740858683813,-153.30735297,0.00027945,2]
[354996102,1740858683824,-1519.99,0.00027945,2]
[354996103,1740858683835,-500.0,0.00027945,2]
[354996104,1740858683845,-3027.82,0.00027945,2]
[354996105,1740858683855,-500.0,0.00027945,2]
[354996106,1740858683865,-7102.79,0.00027945,2]
[354996107,1740858683875,-500.0,0.00027945,2]
[354996108,1740858683886,-1042.84,0.00027945,2]
[354996109,1740858683896,-500.0,0.00027945,2]
[354996110,1740858683906,-500.0,0.00027945,2]
[354996111,1740858683916,-855.2,0.00027945,2]
[354996112,1740858683926,-500.0,0.00027945,2]
[354996113,1740858683936,-500.0,0.00027945,2]
[354996114,1740858683946,-653.93,0.00027945,2]
[354996115,1740858683956,-1305.14,0.00027945,2]
[354996116,1740858683966,-709.69,0.00027955,2]
[354996117,1740858683976,-150.0,0.00027962,2]
[354996118,1740858683986,-151.857,0.00027962,2]
[354996119,1740858683996,-1254.0702398,0.0002797,2]
[354996120,1740858684006,-401.65551021,0.0002797,2]
[354996121,1740858684015,-700.0,0.0002797,2]
[354996122,1740858684025,-216.0,0.0002797,2]
[354996123,1740858684036,-500.0,0.00028,10]
[354996124,1740858684046,-500.0,0.00028,10]
[354996125,1740858684067,-500.0,0.00028,10]
[354996126,1740858684078,-500.0,0.00028,10]
[354996127,1740858684088,-500.0,0.00028,10]
[354996128,1740858684098,-500.0,0.00028,10]
[354996129,1740858684114,-500.0,0.00028,10]
[354996130,1740858684126,-500.0,0.00028,10]
[354996131,1740858684136,-500.0,0.00028,10]
[354996132,1740858684146,-500.0,0.00028,10]
[354996133,1740858684156,-2009.46,0.00028,2]
[354996134,1740858684166,-407.834243,0.00028075,120]
[354996135,1740858684177,-700.0,0.0002817,2]
[354996136,1740858684187,-400.0,0.0002817,2]
[354996137,1740858684196,-381.0,0.000282,2]
[354996138,1740858684206,-100000.0,0.00028218,6]
[354996139,1740858684216,-569.78,0.00028218,2]
[354996140,1740858684226,-877.07,0.00028218,2]
[354996141,1740858684236,-500.0,0.00028218,2]
[354996142,1740858684249,-504.7,0.00028218,2]
[354996143,1740858684259,-612.55,0.00028218,2]
[354996144,1740858684268,-500.0,0.00028218,2]
[354996145,1740858684278,-1898.33,0.00028218,2]
[354996146,1740858684288,-500.0,0.00028218,2]
[354996147,1740858684298,-783.37,0.00028218,2]
[354996148,1740858684307,-566.09,0.00028218,2]
[354996149,1740858684319,-507.39,0.00028218,2]
[354996150,1740858684330,-27658.12043798,0.00028219,30]
[354996151,1740858684339,-1579.83,0.00028219,60]
[354996152,1740858684349,-667.189794,0.00028219,2]
[354996153,1740858684359,-865.056936,0.00028219,2]
[354996154,1740858684369,-500.0,0.00028219,2]
[354996155,1740858684379,-500.0,0.00028219,2]
[354996156,1740858684389,-500.0,0.00028219,2]
[354996157,1740858684398,-469.37670343,0.00028219,2]
[354996158,1740858684408,-500.0,0.00028219,2]
[354996159,1740858684418,-500.0,0.00028219,2]
[354996160,1740858684428,-500.0,0.00028219,2]
[354996161,1740858684438,-500.0,0.00028219,2]
[354996162,1740858684448,-500.0,0.00028219,2]
[354996163,1740858684459,-631.0409247,0.00028219,2]
[354996164,1740858684468,-500.0,0.00028219,2]
[354996165,1740858684478,-500.0,0.00028219,2]
[354996166,1740858684488,-157.4683,0.00028219,7]
[354996167,1740858684498,-157.4683,0.00028219,7]
[354996168,1740858684507,-173.03513408,0.00028219,2]
[354996169,1740858684518,-500.0,0.00028219,2]
[354996170,1740858684528,-500.0,0.00028219,2]
[354996171,1740858684538,-500.0,0.00028219,2]
[354996172,1740858684548,-500.0,0.00028219,2]
[354996173,1740858684558,-500.0,0.00028219,2]
[354996174,1740858684567,-500.0,0.00028219,2]
[354996175,1740858684582,-500.0,0.00028219,2]
[354996176,1740858684593,-634.64788194,0.00028219,2]
[354996177,1740858684604,-500.0,0.00028219,2]
[354996178,1740858684614,-500.0,0.00028219,2]
[354996179,1740858684624,-500.0,0.00028219,2]
[354996180,1740858684634,-500.0,0.00028219,2]
[354996181,1740858684645,-500.0,0.00028219,2]
[354996182,1740858684655,-500.0,0.00028219,2]
[354996183,1740858684666,-500.0,0.00028219,2]
[354996184,1740858684676,-500.0,0.00028219,2]
[354996185,1740858684686,-524.67,0.00028219,2]
[354996186,1740858684697,-500.0,0.00028219,2]
[354996187,1740858684708,-500.0,0.00028219,2]
[354996188,1740858684718,-500.0,0.00028219,2]
[354996189,1740858684728,-821.57,0.00028219,2]
[354996190,1740858684738,-1102.93,0.00028219,2]
[354996191,1740858684749,-507.92,0.00028219,2]
[354996192,1740858684759,-554.05,0.00028219,2]
[354996193,1740858684770,-500.0,0.00028219,2]
[354996194,1740858684781,-500.0,0.00028219,2]
[354996195,1740858684791,-500.0,0.00028219,2]
[354996196,1740858684802,-500.0,0.00028219,2]
[354996197,1740858684811,-500.0,0.00028219,2]
[354996198,1740858684821,-500.0,0.00028219,2]
[354996199,1740858684832,-500.0,0.00028219,2]
[354996200,1740858684843,-500.0,0.00028219,2]
[354996201,1740858684853,-500.0,0.00028219,2]
[354996202,1740858684863,-500.0,0.00028219,2]
[354996203,1740858684873,-500.0,0.00028219,2]
[354996204,1740858684883,-500.0,0.00028219,2]
[354996205,1740858684893,-500.0,0.00028219,2]
[354996206,1740858684903,-500.0,0.00028219,2]
[354996207,1740858684913,-500.0,0.00028219,2]
[354996208,1740858684923,-528.74,0.00028219,2]
[354996209,1740858684933,-500.0,0.00028219,2]
[354996210,1740858684943,-500.0,0.00028219,2]
[354996211,1740858684953,-887.94,0.00028219,2]
[354996212,1740858684963,-500.0,0.00028219,2]
[354996213,1740858684973,-504.34,0.00028219,2]
[354996214,1740858684983,-500.0,0.00028219,2]
[354996215,1740858684992,-626.91,0.00028219,2]
[354996216,1740858685004,-151.0,0.00028219,7]
[354996217,1740858685014,-724.79,0.00028219,2]
[354996218,1740858685024,-572.85,0.00028219,2]
[354996219,1740858685035,-634.03,0.00028219,2]
[354996220,1740858685046,-544.81,0.00028219,2]
[354996221,1740858685056,-1225.41,0.00028219,2]
[354996222,1740858685066,-500.0,0.00028219,2]
[354996223,1740858685076,-650.4,0.00028219,2]
[354996224,1740858685086,-1646.57,0.00028219,2]
[354996225,1740858685097,-500.0,0.00028219,2]
[354996226,1740858685107,-558.28352917,0.00028219,2]
[354996227,1740858685118,-574.95,0.00028219,2]
[354996228,1740858685127,-1000.0,0.00028219,2]
[354996229,1740858685137,-548.18,0.00028219,2]
[354996230,1740858685147,-1162.75,0.00028219,2]
[354996231,1740858685158,-500.0,0.00028219,2]
[354996232,1740858685168,-550.88,0.00028219,2]
[354996233,1740858685178,-500.0,0.00028219,2]
[354996234,1740858685187,-574.67,0.00028219,2]
[354996235,1740858685198,-530.38,0.00028219,2]
[354996236,1740858685208,-606.9,0.00028219,2]
[354996237,1740858685219,-731.69,0.00028219,2]
[354996238,1740858685229,-500.0,0.00028219,2]
[354996239,1740858685239,-742.69,0.00028219,2]
[354996240,1740858685493,-500.0,0.00028219,2]
[354996241,1740858685504,-553.15,0.00028219,2]
[354996242,1740858685514,-500.0,0.00028219,2]
[354996243,1740858685524,-546.6,0.00028219,2]
[354996244,1740858685534,-938.89,0.00028219,2]
[354996245,1740858685545,-500.0,0.00028219,2]
[354996246,1740858685554,-500.0,0.00028219,2]
[354996247,1740858685564,-500.0,0.00028219,2]
[354996248,1740858685574,-500.0,0.00028219,2]
[354996249,1740858685584,-500.0,0.00028219,2]
[354996250,1740858685594,-500.0,0.00028219,2]
[354996251,1740858685604,-500.0,0.00028219,2]
[354996252,1740858685614,-702.7,0.00028219,2]
[354996253,1740858685625,-500.0,0.00028219,2]
[354996254,1740858685635,-500.0,0.00028219,2]
[354996255,1740858685645,-500.0,0.00028219,2]
[354996256,1740858685655,-871.98,0.00028219,2]
[354996257,1740858685666,-962.96,0.00028219,2]
[354996258,1740858685675,-690.67,0.00028219,2]
[354996259,1740858685686,-4231.37,0.00028219,2]
[354996260,1740858685696,-500.0,0.00028219,2]
[354996261,1740858685706,-539.33,0.00028219,2]
[354996262,1740858685716,-500.0,0.00028219,2]
[354996263,1740858685726,-741.36,0.00028219,2]
[354996264,1740858685735,-601.03,0.00028219,2]
[354996265,1740858685746,-6071.89,0.00028219,2]
[354996266,1740858685756,-845.71,0.00028219,2]
[354996267,1740858685766,-720.23,0.00028219,2]
[354996268,1740858685776,-569.42,0.00028219,2]
[354996269,1740858685786,-559.89526234,0.00028219,2]
[354996270,1740858685796,-500.0,0.00028219,2]
[354996271,1740858685806,-569.65,0.00028219,2]
[354996272,1740858685816,-683.45,0.00028219,2]
[354996273,1740858685825,-838.27,0.00028219,2]
[354996274,1740858685835,-500.0,0.00028219,2]
[354996275,1740858685846,-837.72,0.00028219,2]
[354996276,1740858685856,-825.34,0.00028219,2]
[354996277,1740858685870,-500.0,0.00028219,2]
[354996278,1740858685880,-500.0,0.00028219,2]
[354996279,1740858685889,-500.0,0.00028219,2]
[354996280,1740858685900,-500.0,0.00028219,2]
[354996281,1740858685910,-500.0,0.00028219,2]
[354996282,1740858685920,-500.0,0.00028219,2]
[354996283,1740858685930,-500.0,0.00028219,2]
[354996284,1740858685940,-9196.21,0.00028219,2]
[354996285,1740858685950,-500.0,0.00028219,2]
[354996286,1740858685960,-540.61,0.00028219,2]
[354996287,1740858685970,-543.3095318,0.00028219,2]
[354996288,1740858685980,-1573.23,0.00028219,2]
[354996289,1740858685990,-747.87,0.00028219,2]
[354996290,1740858685999,-500.0,0.00028219,2]
[354996291,1740858686010,-970.75,0.00028219,2]
[354996292,1740858686020,-500.0,0.00028219,2]
[354996293,1740858686030,-500.0,0.00028219,2]
[354996294,1740858686040,-1337.47,0.00028219,2]
[354996295,1740858686051,-556.96,0.00028219,2]
[354996296,1740858686061,-500.0,0.00028219,2]
[354996297,1740858686071,-500.0,0.00028219,2]
[354996298,1740858686082,-519.03,0.00028219,2]
[354996299,1740858686092,-500.0,0.00028219,2]
[354996300,1740858686102,-526.62,0.00028219,2]
[354996301,1740858686112,-1519.99,0.00028219,2]
[354996302,1740858686122,-500.0,0.00028219,2]
[354996303,1740858686132,-3027.82,0.00028219,2]
[354996304,1740858686142,-500.0,0.00028219,2]
[354996305,1740858686152,-7102.79,0.00028219,2]
[354996306,1740858686162,-500.0,0.00028219,2]
[354996307,1740858686172,-1042.84,0.00028219,2]
[354996308,1740858686183,-500.0,0.00028219,2]
[354996309,1740858686193,-500.0,0.00028219,2]
[354996310,1740858686203,-855.2,0.00028219,2]
[354996311,1740858686213,-500.0,0.00028219,2]
[354996312,1740858686223,-500.0,0.00028219,2]
[354996313,1740858686234,-653.93,0.00028219,2]
[354996314,1740858686243,-1305.14,0.00028219,2]
[354996315,1740858686256,-1500.0,0.000284,2]
[354996316,1740858686266,-1500.0,0.000284,2]
[354996317,1740858686276,-1502.44,0.000284,2]
[354996318,1740858686286,-400.0,0.0002847,2]
[354996319,1740858686298,-700.0,0.0002847,2]
[354996320,1740858686308,-700.0,0.0002847,2]
[354996321,1740858686318,-400.0,0.0002847,2]
[354996322,1740858686330,-700.0,0.0002847,2]
[354996323,1740858686340,-400.0,0.0002847,2]
[354996324,1740858686350,-573.9424318,0.0002848,2]
[354996325,1740858686360,-1543.6018813,0.0002848,2]
[354996326,1740858686370,-100000.0,0.00028492,7]
[354996327,1740858686380,-569.78,0.00028492,2]
[354996328,1740858686390,-877.07,0.00028492,2]
[354996329,1740858686400,-500.0,0.00028492,2]
[354996330,1740858686410,-504.7,0.00028492,2]
[354996331,1740858686421,-612.55,0.00028492,2]
[354996332,1740858686431,-500.0,0.00028492,2]
[354996333,1740858686441,-1898.33,0.00028492,2]
[354996334,1740858686451,-629.82925617,0.00028492,2]
[354996335,1740858686461,-783.37,0.00028492,2]
[354996336,1740858686471,-566.09,0.00028492,2]
[354996337,1740858686480,-507.39,0.00028492,2]
[354996338,1740858686490,-1579.83,0.00028493,60]
[354996339,1740858686500,-667.189794,0.00028493,2]
[354996340,1740858686509,-865.056936,0.00028493,2]
[354996341,1740858686519,-288.90585424,0.00028493,2]
[354996342,1740858686528,-500.0,0.00028493,2]
[354996343,1740858686538,-500.0,0.00028493,2]